fUSD/lending_fUSD_20240624
["ID","MTS","AMOUNT","RATE_DAILY","PERIOD"]
[330274313,1719221456732,-605.28,0.00019726,4]
[330274314,1719221456742,-500.0,0.00019726,4]
[330274315,1719221456751,-500.0,0.00019726,4]
[330274316,1719221456762,-500.0,0.00019726,4]
[330274317,1719221456772,-692.24,0.00019726,4]
[330274318,1719221456783,-500.0,0.00019726,4]
[330274319,1719221456793,-632.79,0.00019726,4]
[330274320,1719221456804,-500.0,0.00019726,4]
[330274321,1719221456814,-629.87,0.00019726,4]
[330274322,1719221456824,-500.0,0.00019726,4]
[330274323,1719221456834,-545.4,0.00019726,4]
[330274324,1719221456844,-500.0,0.00019726,4]
[330274325,1719221456854,-527.05,0.00019726,4]
[330274326,1719221456865,-827.28,0.00019726,4]
[330274327,1719221456874,-500.0,0.00019726,4]
[330274328,1719221456885,-500.0,0.00019726,4]
[330274329,1719221456895,-500.0,0.00019726,4]
[330274330,1719221456905,-723.76,0.00019726,4]
[330274331,1719221456915,-532.01,0.00019726,4]
[330274332,1719221456925,-851.06,0.00019726,4]
[330274333,1719221456935,-500.0,0.00019726,4]
[330274334,1719221456946,-860.24,0.00019726,4]
[330274335,1719221456956,-500.0,0.00019726,4]
[330274336,1719221456965,-727.25,0.00019726,4]
[330274337,1719221456975,-637.91,0.00019726,4]
[330274338,1719221456985,-648.58,0.00019726,4]
[330274339,1719221456994,-764.02,0.00019726,4]
[330274340,1719221457005,-639.0,0.00019726,4]
[330274341,1719221457030,-500.0,0.00019726,4]
[330274342,1719221457040,-500.0,0.00019726,4]
[330274343,1719221457050,-752.54,0.00019726,4]
[330274344,1719221457060,-552.19,0.00019726,4]
[330274345,1719221457070,-675.49,0.00019726,4]
[330274346,1719221457080,-934.49,0.00019726,4]
[330274347,1719221457094,-500.0,0.00019726,4]
[330274348,1719221457104,-508.81,0.00019726,4]
[330274349,1719221457114,-541.88,0.00019726,4]
[330274350,1719221457124,-500.0,0.00019726,4]
[330274351,1719221457135,-724.72,0.00019726,4]
[330274352,1719221457145,-650.21,0.00019726,4]
[330274353,1719221457155,-647.16,0.00019726,4]
[330274354,1719221457167,-236.7925792,0.00019726,4]
[330274355,1719221457187,-442.8374208,0.00019726,4]
[330274356,1719221457197,-740.35,0.00019726,4]
[330274357,1719221457208,-849.74,0.00019726,4]
[330274358,1719221457219,-746.5,0.00019726,4]
[330274359,1719221457229,-500.0,0.00019726,4]
[330274360,1719221457239,-500.1,0.00019726,4]
[330274361,1719221457249,-500.0,0.00019726,4]
[330274362,1719221457259,-587.85,0.00019726,4]
[330274363,1719221457270,-500.0,0.00019726,4]
[330274364,1719221457280,-706.96,0.00019726,4]
[330274365,1719221457290,-858.15,0.00019726,4]
[330274366,1719221457300,-500.0,0.00019726,4]
[330274367,1719221457310,-563.8,0.00019726,4]
[330274368,1719221457320,-730.57,0.00019726,4]
[330274369,1719221457330,-606.55,0.00019726,4]
[330274370,1719221457340,-866.29,0.00019726,4]
[330274371,1719221457350,-690.17,0.00019726,4]
[330274372,1719221457360,-815.29,0.00019726,4]
[330274373,1719221457370,-500.0,0.00019726,4]
[330274374,1719221457380,-883.06,0.00019726,4]
[330274375,1719221457390,-729.24,0.00019726,4]
[330274376,1719221457400,-737.88,0.00019726,4]
[330274377,1719221457411,-500.0,0.00019726,4]
[330274378,1719221457422,-500.0,0.00019726,4]
[330274379,1719221457432,-500.0,0.00019726,4]
[330274380,1719221457442,-500.0,0.00019726,4]
[330274381,1719221457452,-815.27,0.00019726,4]
[330274382,1719221457462,-840.12,0.00019726,4]
[330274383,1719221457472,-500.0,0.00019726,4]
[330274384,1719221457483,-500.0,0.00019726,4]
[330274385,1719221457493,-500.0,0.00019726,4]
[330274386,1719221457503,-500.0,0.00019726,4]
[330274387,1719221457512,-507.30254272,0.00019726,4]
[330274388,1719221457540,-500.0,0.00019726,4]
[330274389,1719221457550,-741.45,0.00019726,4]
[330274390,1719221457560,-500.0,0.00019726,4]
[330274391,1719221457570,-500.0,0.00019726,4]
[330274392,1719221457579,-840.22,0.00019726,4]
[330274393,1719221457589,-500.0,0.00019726,4]
[330274394,1719221457599,-945.66,0.00019726,4]
[330274395,1719221457608,-500.0,0.00019726,4]
[330274396,1719221457618,-639.28,0.00019726,4]
[330274397,1719221457628,-500.0,0.00019726,4]
[330274398,1719221457638,-500.0,0.00019726,4]
[330274399,1719221457647,-500.0,0.00019726,4]
[330274400,1719221457657,-935.12,0.00019726,4]
[330274401,1719221457667,-500.0,0.00019726,4]
[330274402,1719221457677,-500.0,0.00019726,4]
[330274403,1719221457687,-500.0,0.00019726,4]
[330274404,1719221457697,-957.36,0.00019726,4]
[330274405,1719221457707,-543.91,0.00019726,4]
[330274406,1719221457718,-500.0,0.00019726,4]
[330274407,1719221457727,-505.08,0.00019726,4]
[330274408,1719221457737,-154.87,0.00019726,4]
[330274409,1719221457747,-500.0,0.00019726,2]
[330274410,1719221457757,-500.0,0.00019726,4]
[330274411,1719221457984,-841.78,0.00019726,4]
[330274412,1719221457996,-516.09481286,0.00019726,4]
[330274413,1719221458006,-500.0,0.00019726,4]
[330274414,1719221458020,-698.57,0.00019726,4]
[330274415,1719221458041,-318.41,0.00019726,4]
[330274416,1719221458051,-836.32,0.00019726,4]
[330274417,1719221458060,-500.0,0.00019726,4]
[330274418,1719221458070,-588.59,0.00019726,4]
[330274419,1719221458080,-657.52,0.00019726,4]
[330274420,1719221458098,-794.26,0.00019726,4]
[330274421,1719221458108,-500.0,0.00019726,4]
[330274422,1719221458118,-500.0,0.00019726,4]
[330274423,1719221458127,-500.0,0.00019726,4]
[330274424,1719221458140,-791.91,0.00019726,4]
[330274425,1719221458150,-1694.54,0.00019726,4]
[330274426,1719221458159,-896.28,0.00019726,4]
[330274427,1719221458169,-608.41,0.00019726,4]
[330274428,1719221458178,-500.0,0.00019726,4]
[330274429,1719221458188,-500.0,0.00019726,4]
[330274430,1719221458198,-2792.65,0.00019726,4]
[330274431,1719221458207,-529.67,0.00019726,4]
[330274432,1719221458217,-500.0,0.00019726,4]
[330274433,1719221458227,-635.89,0.00019726,4]
[330274434,1719221458236,-513.97,0.00019726,4]
[330274435,1719221458246,-500.0,0.00019726,4]
[330274436,1719221458255,-1014.35,0.00019726,4]
[330274437,1719221458267,-1027.87,0.00019726,4]
[330274438,1719221458276,-726.38,0.00019726,4]
[330274439,1719221458286,-500.0,0.00019726,4]
[330274440,1719221458296,-652.98,0.00019726,4]
[330274441,1719221458305,-658.16,0.00019726,4]
[330274442,1719221458314,-1100.8,0.00019726,4]
[330274443,1719221458323,-808.21,0.00019726,4]
[330274444,1719221458333,-500.0,0.00019726,4]
[330274445,1719221458342,-580.36,0.00019726,4]
[330274446,1719221458351,-600.96,0.00019726,4]
[330274447,1719221458361,-541.37,0.00019726,4]
[330274448,1719221458370,-2529.06,0.00019726,4]
[330274449,1719221458379,-2863.88,0.00019726,4]
[330274450,1719221458389,-500.0,0.00019726,4]
[330274451,1719221458398,-500.0,0.00019726,4]
[330274452,1719221458407,-500.0,0.00019726,4]
[330274453,1719221458416,-500.0,0.00019726,4]
[330274454,1719221458426,-623.73,0.00019726,4]
[330274455,1719221458435,-653.53,0.00019726,4]
[330274456,1719221458445,-763.67,0.00019726,4]
[330274457,1719221458454,-1808.46,0.00019726,4]
[330274458,1719221458463,-610.29,0.00019726,4]
[330274459,1719221458473,-908.15,0.00019726,4]
[330274460,1719221458482,-533.28,0.00019726,4]
[330274461,1719221458492,-584.9,0.00019726,4]
[330274462,1719221458502,-512.0,0.00019726,4]
[330274463,1719221458512,-500.0,0.00019726,2]
[330274464,1719221458541,-353.05,0.00019726,4]
[330274465,1719221458551,-500.0,0.00019726,4]
[330274466,1719221458561,-1091.83,0.00019726,4]
[330274467,1719221458571,-500.0,0.00019726,4]
[330274468,1719221458581,-533.39,0.00019726,4]
[330274469,1719221458592,-500.0,0.00019726,4]
[330274470,1719221458602,-1109.31,0.00019726,4]
[330274471,1719221458611,-738.89,0.00019726,4]
[330274472,1719221458621,-500.0,0.00019726,4]
[330274473,1719221458631,-500.0,0.00019726,4]
[330274474,1719221458640,-932.5,0.00019726,4]
[330274475,1719221458650,-690.76,0.00019726,4]
[330274476,1719221458660,-573.56,0.00019726,4]
[330274477,1719221458670,-500.0,0.00019726,4]
[330274478,1719221458679,-500.0,0.00019726,4]
[330274479,1719221458689,-2102.4,0.00019726,4]
[330274480,1719221458698,-162.69810592,0.00019726,4]
[330274481,1719221458708,-500.0,0.00019726,4]
[330274482,1719221458717,-500.0,0.00019726,4]
[330274483,1719221458727,-3401.89,0.00019726,4]
[330274484,1719221458736,-500.0,0.00019726,4]
[330274485,1719221458746,-501.94,0.00019726,4]
[330274486,1719221458756,-881.78,0.00019726,4]
[330274487,1719221458765,-1798.69,0.00019726,4]
[330274488,1719221458774,-1656.04,0.00019726,4]
[330274489,1719221458783,-162.29615823,0.00019726,4]
[330274490,1719221458793,-1396.5,0.00019726,4]
[330274491,1719221458802,-500.0,0.00019726,4]
[330274492,1719221458812,-500.0,0.00019726,4]
[330274493,1719221458821,-500.0,0.00019726,4]
[330274494,1719221458830,-1145.17,0.00019726,4]
[330274495,1719221458840,-1444.01,0.00019726,4]
[330274496,1719221458849,-2054.46,0.00019726,4]
[330274497,1719221458859,-10044.42,0.00019726,4]
[330274498,1719221458868,-728.03,0.00019726,4]
[330274499,1719221458878,-685.73,0.00019726,4]
[330274500,1719221458888,-500.0,0.00019726,4]
[330274501,1719221458898,-500.0,0.00019726,4]
[330274502,1719221458907,-500.0,0.00019726,4]
[330274503,1719221458917,-722.97,0.00019726,4]
[330274504,1719221458927,-858.63,0.00019726,4]
[330274505,1719221458936,-500.0,0.00019726,4]
[330274506,1719221458946,-608.78,0.00019726,4]
[330274507,1719221458956,-500.0,0.00019726,4]
[330274508,1719221458965,-530.98,0.00019726,4]
[330274509,1719221458976,-2951.6,0.00019726,4]
[330274510,1719221458986,-877.57,0.00019726,4]
[330274511,1719221458995,-500.0,0.00019726,4]
[330274512,1719221459004,-500.0,0.00019726,4]
[330274513,1719221459014,-14859.61,0.00019726,4]
[330274514,1719221459042,-500.0,0.00019726,4]
[330274515,1719221459051,-500.0,0.00019726,4]
[330274516,1719221459061,-332.43071547,0.00019726,4]
[330274517,1719221459070,-880.92,0.00019726,4]
[330274518,1719221459079,-863.63,0.00019726,4]
[330274519,1719221459095,-1665.06,0.00019726,4]
[330274520,1719221459104,-500.0,0.00019726,4]
[330274521,1719221459113,-183.80131817,0.00019726,4]
[330274522,1719221459123,-1512.7,0.00019726,4]
[330274523,1719221459135,-500.0,0.00019726,4]
[330274524,1719221459145,-500.0,0.00019726,4]
[330274525,1719221459154,-1138.11,0.00019726,4]
[330274526,1719221459164,-500.0,0.00019726,4]
[330274527,1719221459175,-500.0,0.00019726,4]
[330274528,1719221459184,-500.0,0.00019726,4]
[330274529,1719221459194,-500.0,0.00019726,4]
[330274530,1719221459203,-922.67,0.00019726,4]
[330274531,1719221459214,-500.0,0.00019726,4]
[330274532,1719221459224,-500.0,0.00019726,4]
[330274533,1719221459234,-692.88,0.00019726,4]
[330274534,1719221459249,-1014.99,0.00019726,4]
[330274535,1719221459259,-500.0,0.00019726,4]
[330274536,1719221459270,-724.34,0.00019726,4]
[330274537,1719221459280,-745.13,0.00019726,4]
[330274538,1719221459289,-1843.17,0.00019726,4]
[330274539,1719221459299,-772.68,0.00019726,4]
[330274540,1719221459309,-588.67,0.00019726,4]
[330274541,1719221459318,-1421.28,0.00019726,4]
[330274542,1719221459327,-1937.34,0.00019726,4]
[330274543,1719221459337,-500.0,0.00019726,4]
[330274544,1719221459347,-500.0,0.00019726,4]
[330274545,1719221459356,-840.14,0.00019726,4]
[330274546,1719221459368,-500.0,0.00019726,4]
[330274547,1719221459378,-1094.97,0.00019726,4]
[330274548,1719221459388,-500.0,0.00019726,4]
[330274549,1719221459398,-528.93,0.00019726,4]
[330274550,1719221459408,-500.0,0.00019726,4]
[330274551,1719221459418,-610.19,0.00019726,4]
[330274552,1719221459427,-500.0,0.00019726,4]
[330274553,1719221459436,-589.19,0.00019726,4]
[330274554,1719221459446,-500.0,0.00019726,4]
[330274555,1719221459456,-500.0,0.00019726,4]
[330274556,1719221459465,-939.72,0.00019726,4]
[330274557,1719221459475,-1202.18,0.00019726,4]
[330274558,1719221459484,-870.19,0.00019726,4]
[330274559,1719221459494,-500.0,0.00019726,4]
[330274560,1719221459504,-500.0,0.00019726,4]
[330274561,1719221459514,-1030.47,0.00019726,4]
[330274562,1719221459539,-1039.09,0.00019726,4]
[330274563,1719221459549,-2116.67,0.00019726,4]
[330274564,1719221459559,-693.85,0.00019726,4]
[330274565,1719221459569,-500.0,0.00019726,4]
[330274566,1719221459580,-635.53,0.00019726,4]
[330274567,1719221459590,-500.0,0.00019726,4]
[330274568,1719221459600,-500.0,0.00019726,4]
[330274569,1719221459609,-500.0,0.00019726,4]
[330274570,1719221459619,-1486.41,0.00019726,4]
[330274571,1719221459629,-1895.67,0.00019726,4]
[330274572,1719221459639,-954.61,0.00019726,4]
[330274573,1719221459649,-1270.74,0.00019726,4]
[330274574,1719221459659,-620.47,0.00019726,4]
[330274575,1719221459669,-1727.08,0.00019726,4]
[330274576,1719221459679,-500.0,0.00019726,4]
[330274577,1719221459688,-1536.5,0.00019726,4]
[330274578,1719221459699,-500.0,0.00019726,4]
[330274579,1719221459709,-500.0,0.00019726,4]
[330274580,1719221459719,-500.0,0.00019726,4]
[330274581,1719221459728,-500.0,0.00019726,4]
[330274582,1719221459738,-500.0,0.00019726,4]
[330274583,1719221459748,-500.0,0.00019726,4]
[330274584,1719221459757,-1096.63,0.00019726,4]
[330274585,1719221459767,-661.9,0.00019726,4]
[330274586,1719221459777,-500.0,0.00019726,4]
[330274587,1719221459787,-1358.05,0.00019726,4]
[330274588,1719221459796,-500.0,0.00019726,4]
[330274589,1719221459806,-1010.56,0.00019726,4]
[330274590,1719221459816,-500.0,0.00019726,4]
[330274591,1719221459825,-500.0,0.00019726,4]
[330274592,1719221459835,-1862.43,0.00019726,4]
[330274593,1719221459845,-500.0,0.00019726,4]
[330274594,1719221459856,-500.0,0.00019726,4]
[330274595,1719221459866,-500.0,0.00019726,4]
[330274596,1719221459876,-1311.74,0.00019726,4]
[330274597,1719221459886,-153.96258128,0.00019726,4]
[330274598,1719221459896,-569.02,0.00019726,4]
[330274599,1719221459906,-612.46,0.00019726,4]
[330274600,1719221459917,-500.0,0.00019726,4]
[330274601,1719221459927,-500.0,0.00019726,4]
[330274602,1719221459937,-500.0,0.00019726,4]
[330274603,1719221459947,-500.0,0.00019726,4]
[330274604,1719221459958,-774.27,0.00019726,4]
[330274605,1719221459967,-1493.59,0.00019726,4]
[330274606,1719221459978,-1076.34,0.00019726,4]
[330274607,1719221459988,-1180.3,0.00019726,4]
[330274608,1719221459998,-1602.79,0.00019726,4]
[330274609,1719221460008,-500.0,0.00019726,4]
[330274610,1719221460018,-596.37,0.00019726,4]
[330274611,1719221460047,-904.49,0.00019726,4]
[330274612,1719221460057,-3648.6,0.00019726,4]
[330274613,1719221460067,-500.0,0.00019726,4]
[330274614,1719221460076,-1401.97,0.00019726,4]
[330274615,1719221460089,-500.0,0.00019726,4]
[330274616,1719221460099,-500.0,0.00019726,4]
[330274617,1719221460109,-500.0,0.00019726,4]
[330274618,1719221460119,-1867.05,0.00019726,4]
[330274619,1719221460132,-500.0,0.00019726,4]
[330274620,1719221460151,-1917.18,0.00019726,4]
[330274621,1719221460174,-539.5,0.00019726,4]
[330274622,1719221460197,-747.4,0.00019726,4]
[330274623,1719221460231,-5870.36,0.00019726,4]
[330274624,1719221460269,-550.72,0.00019726,4]
[330274625,1719221460313,-2388.91,0.00019726,4]
[330274626,1719221460341,-500.0,0.00019726,4]
[330274627,1719221460352,-501.37,0.00019726,4]
[330274628,1719221460363,-1499.24,0.00019726,4]
[330274629,1719221460373,-500.0,0.00019726,4]
[330274630,1719221460382,-3128.36,0.00019726,4]
[330274631,1719221460393,-784.49,0.00019726,4]
[330274632,1719221460403,-1236.09,0.00019726,4]
[330274633,1719221460413,-500.0,0.00019726,4]
[330274634,1719221460423,-2500.0,0.00019726,3]
[330274635,1719221460433,-500.0,0.00019726,4]
[330274636,1719221460442,-500.0,0.00019726,4]
[330274637,1719221460452,-570.65,0.00019726,4]
[330274638,1719221460462,-559.99501763,0.00019726,4]
[330274639,1719221460472,-1087.64,0.00019726,4]
[330274640,1719221460482,-500.0,0.00019726,4]
[330274641,1719221460491,-1492.08,0.00019726,4]
[330274642,1719221460501,-2784.87,0.00019726,4]
[330274643,1719221460512,-709.34,0.00019726,4]
[330274644,1719221460521,-500.0,0.00019726,4]
[330274645,1719221460531,-500.0,0.00019726,2]
[330274646,1719221460560,-500.0,0.00019726,4]
[330274647,1719221460570,-500.0,0.00019726,4]
[330274648,1719221460580,-1293.94,0.00019726,4]
[330274649,1719221460590,-1892.22,0.00019726,4]
[330274650,1719221460600,-1278.17,0.00019726,4]
[330274651,1719221460609,-924.07,0.00019726,4]
[330274652,1719221460619,-500.0,0.00019726,4]
[330274653,1719221460628,-985.76,0.00019726,4]
[330274654,1719221460638,-500.0,0.00019726,4]
[330274655,1719221460647,-2011.41,0.00019726,4]
[330274656,1719221460657,-500.0,0.00019726,4]
[330274657,1719221460666,-790.64,0.00019726,4]
[330274658,1719221460675,-872.65,0.00019726,4]
[330274659,1719221460684,-1891.81,0.00019726,4]
[330274660,1719221460693,-500.0,0.00019726,4]
[330274661,1719221460703,-500.0,0.00019726,4]
[330274662,1719221460714,-500.0,0.00019726,4]
[330274663,1719221460724,-500.0,0.00019726,4]
[330274664,1719221460733,-500.0,0.00019726,4]
[330274665,1719221460744,-538.29474243,0.00019726,4]
[330274666,1719221460753,-574.92,0.00019726,4]
[330274667,1719221460763,-788.54,0.00019726,4]
[330274668,1719221460773,-500.0,0.00019726,4]
[330274669,1719221460783,-3298.75,0.00019726,4]
[330274670,1719221460793,-1016.82,0.00019726,4]
[330274671,1719221460803,-500.0,0.00019726,4]
[330274672,1719221460813,-854.93,0.00019726,4]
[330274673,1719221460823,-260.76236236,0.00019726,4]
[330274674,1719221460833,-500.0,0.00019726,4]
[330274675,1719221460842,-500.0,0.00019726,4]
[330274676,1719221460852,-500.0,0.00019726,4]
[330274677,1719221460862,-2044.66,0.00019726,4]
[330274678,1719221460871,-1350.85,0.00019726,4]
[330274679,1719221460881,-527.87449785,0.00019726,4]
[330274680,1719221460890,-500.0,0.00019726,4]
[330274681,1719221460900,-1217.95661573,0.00019771,2]
[330274682,1719221460909,-715.71837698,0.00019797,2]
[330274683,1719221460919,-715.71837698,0.00019797,2]
[330274684,1719221460928,-900.0,0.000198,7]
[330274685,1719221460939,-946.55454585,0.000198,2]
[330274686,1719221460948,-156.1,0.00019831,2]
[330274687,1719221460957,-1883.41218816,0.00019847,2]
[330274688,1719221460967,-737.0,0.000199,4]
[330274689,1719221460977,-1200.0,0.000199,7]
[330274690,1719221460987,-209.96997035,0.00019923,2]
[330274691,1719221460996,-172.0,0.0001996,2]
[330274692,1719221461006,-200.0,0.00019974,2]
[330274693,1719221461016,-338.99508779,0.0002,7]
[330274694,1719221461026,-500.0,0.0002,4]
[330274695,1719221461038,-2249.33860156,0.0002,2]
[330274696,1719221461063,-500.0,0.0002,4]
[330274697,1719221461073,-1209.07,0.0002,4]
[330274698,1719221461084,-500.0,0.0002,4]
[330274699,1719221461095,-1731.28,0.0002,4]
[330274700,1719221461105,-1285.84,0.0002,4]
[330274701,1719221461115,-1212.55,0.0002,4]
[330274702,1719221461127,-500.0,0.0002,4]
[330274703,1719221461141,-500.0,0.0002,4]
[330274704,1719221461151,-514.55,0.0002,4]
[330274705,1719221461161,-707.98,0.0002,4]
[330274706,1719221461171,-583.57,0.0002,4]
[330274707,1719221461182,-538.15,0.0002,4]
[330274708,1719221461191,-673.57,0.0002,4]
[330274709,1719221461201,-650.34,0.0002,4]
[330274710,1719221461211,-500.0,0.0002,4]
[330274711,1719221461220,-500.0,0.0002,4]
[330274712,1719221461231,-500.0,0.0002,4]
[330274713,1719221461240,-681.7,0.0002,4]
[330274714,1719221461250,-500.0,0.0002,4]
[330274715,1719221461259,-360.12126143,0.0002,4]
[330274716,1719221461269,-500.0,0.0002,4]
[330274717,1719221461279,-500.0,0.0002,4]
[330274718,1719221461289,-530.96022307,0.0002,4]
[330274719,1719221461298,-797.03,0.0002,4]
[330274720,1719221461308,-573.41,0.0002,4]
[330274721,1719221461317,-500.0,0.0002,4]
[330274722,1719221461327,-960.92,0.0002,4]
[330274723,1719221461336,-500.0,0.0002,4]
[330274724,1719221461346,-250.0,0.0002,4]
[330274725,1719221461355,-1004.34,0.0002,4]
[330274726,1719221461369,-866.64783494,0.0002,2]
[330274727,1719221461378,-514.4,0.0002,4]
[330274728,1719221461388,-578.82,0.0002,4]
[330274729,1719221461397,-500.0,0.0002,4]
[330274730,1719221461406,-500.0,0.0002,4]
[330274731,1719221461415,-952.68,0.0002,4]
[330274732,1719221461425,-674.88,0.0002,4]
[330274733,1719221461434,-500.0,0.0002,4]
[330274734,1719221461443,-894.67,0.0002,4]
[330274735,1719221461452,-509.74,0.0002,4]
[330274736,1719221461462,-515.99,0.0002,4]
[330274737,1719221461471,-500.0,0.0002,4]
[330274738,1719221461481,-677.43,0.0002,4]
[330274739,1719221461493,-190.27608016,0.0002,2]
[330274740,1719221461503,-611.04,0.0002,4]
[330274741,1719221461513,-659.6,0.0002,4]
[330274742,1719221461523,-986.08,0.0002,4]
[330274743,1719221461532,-613.86,0.0002,4]
[330274744,1719221461541,-825.81,0.0002,4]
[330274745,1719221461550,-707.48,0.0002,4]
[330274746,1719221461575,-767.98,0.0002,4]
[330274747,1719221461585,-621.76,0.0002,4]
[330274748,1719221461595,-556.03,0.0002,4]
[330274749,1719221461604,-563.64,0.0002,4]
[330274750,1719221461614,-500.0,0.0002,4]
[330274751,1719221461623,-500.0,0.0002,4]
[330274752,1719221461632,-500.0,0.0002,4]
[330274753,1719221461642,-500.0,0.0002,4]
[330274754,1719221461651,-605.28,0.0002,4]
[330274755,1719221461661,-500.0,0.0002,4]
[330274756,1719221461671,-500.0,0.0002,4]
[330274757,1719221461680,-500.0,0.0002,4]
[330274758,1719221461689,-692.24,0.0002,4]
[330274759,1719221461699,-500.0,0.0002,4]
[330274760,1719221461708,-632.79,0.0002,4]
[330274761,1719221461717,-500.0,0.0002,4]
[330274762,1719221461726,-629.87,0.0002,4]
[330274763,1719221461736,-500.0,0.0002,4]
[330274764,1719221461746,-545.4,0.0002,4]
[330274765,1719221461755,-500.0,0.0002,4]
[330274766,1719221461764,-527.05,0.0002,4]
[330274767,1719221461773,-827.28,0.0002,4]
[330274768,1719221461783,-489.15378848,0.0002,4]
[330274769,1719221461792,-500.0,0.0002,4]
[330274770,1719221461802,-500.0,0.0002,4]
[330274771,1719221461811,-723.76,0.0002,4]
[330274772,1719221461821,-532.01,0.0002,4]
[330274773,1719221461830,-851.06,0.0002,4]
[330274774,1719221461840,-500.0,0.0002,4]
[330274775,1719221461850,-860.24,0.0002,4]
[330274776,1719221461872,-500.0,0.0002,4]
[330274777,1719221461896,-727.25,0.0002,4]
[330274778,1719221461918,-637.91,0.0002,4]
[330274779,1719221461941,-648.58,0.0002,4]
[330274780,1719221461963,-764.02,0.0002,4]
[330274781,1719221461987,-639.0,0.0002,4]
[330274782,1719221462012,-500.0,0.0002,4]
[330274783,1719221462037,-500.0,0.0002,4]
[330274784,1719221462047,-752.54,0.0002,4]
[330274785,1719221462065,-552.19,0.0002,4]
[330274786,1719221462086,-316.70507525,0.0002,4]
[330274787,1719221462112,-358.78492475,0.0002,4]
[330274788,1719221462123,-934.49,0.0002,4]
[330274789,1719221462136,-500.0,0.0002,4]
[330274790,1719221462146,-508.81,0.0002,4]
[330274791,1719221462155,-541.88,0.0002,4]
[330274792,1719221462165,-500.0,0.0002,4]
[330274793,1719221462175,-650.21,0.0002,4]
[330274794,1719221462184,-724.72,0.0002,4]
[330274795,1719221462194,-647.16,0.0002,4]
[330274796,1719221462204,-679.63,0.0002,4]
[330274797,1719221462214,-740.35,0.0002,4]
[330274798,1719221462224,-746.5,0.0002,4]
[330274799,1719221462234,-849.74,0.0002,4]
[330274800,1719221462244,-500.0,0.0002,4]
[330274801,1719221462253,-500.1,0.0002,4]
[330274802,1719221462265,-500.0,0.0002,4]
[330274803,1719221462275,-587.85,0.0002,4]
[330274804,1719221462285,-500.0,0.0002,4]
[330274805,1719221462294,-706.96,0.0002,4]
[330274806,1719221462304,-858.15,0.0002,4]
[330274807,1719221462314,-471.96,0.0002,4]
[330274808,1719221462325,-563.8,0.0002,4]
[330274809,1719221462335,-730.57,0.0002,4]
[330274810,1719221462345,-606.55,0.0002,4]
[330274811,1719221462356,-866.29,0.0002,4]
[330274812,1719221462560,-690.17,0.0002,4]